Cogmind - Beta 12 @@@ ROGUE MODE // 2024.02.27 @ 00:53:01 Player: Takagiro Result: Destroyed by G-47 Trooper with Particle Gun Performance ------------- Evolutions (0) 0 Regions Visited (2) 400 Robots Destroyed (16) 80 Value Destroyed (412) 412 Prototype IDs (0) 0 Alien Tech Used (0) 0 Bonus (0) 0 TOTAL SCORE: 892 Bonus ------- None Cogmind --------- Core Integrity 0/250 Matter 124/300 Energy 113/125 System Corruption 0% Temperature Warm (154) Movement Walking (190) Ox1 Location -10/Mines Parts ------- > --- POWER (1) -------- Light Ion Engine > --- PROPULSION (2) --- Aluminum Leg > --- UTILITY (2) ------ Small Storage Unit Utility Shielding > --- WEAPON (2) ------- Medium Laser Beam Cannon > --- INVENTORY (8) ---- Light Treads Light Treads Light Treads Utility Shielding Medium Laser Peak State ------------ > --- POWER ------------ Ion Engine > --- PROPULSION ------- Aluminum Leg Aluminum Leg > --- UTILITY ---------- Small Storage Unit Utility Shielding > --- WEAPON ----------- Beam Cannon Grenade Launcher > --- INVENTORY -------- Light Ion Engine Light Treads Light Treads Light Treads Aluminum Leg Utility Shielding Light Assault Rifle [Rating: 7] Favorites ----------- Power Light Ion Engine Engine Light Ion Engine Propulsion Aluminum Leg Leg Aluminum Leg Wheel Compact Wheel Utility Small Storage Unit Device Heat Sink Storage Small Storage Unit Protection Utility Shielding Weapon Beam Cannon Energy Gun Medium Laser Energy Cannon Beam Cannon Ballistic Gun Assault Rifle Launcher Grenade Launcher Build | -11 -10 -10 ------- Run | Jun Mat Min Slots Evolved . | . . . Power . | . . . Propulsion . | . . . Utility . | . . . Weapon . | . . . Parts Attached 19 | 6 12 1 Power 3 | 1 2 . Engine 3 | 1 2 . Core . | . . . Reactor . | . . . Propulsion 5 | 2 3 . Treads . | . . . Leg 3 | . 3 . Wheel 2 | 2 . . Hover . | . . . Flight . | . . . Utility 3 | 1 2 . Device 1 | . 1 . Storage 1 | 1 . . Processor . | . . . Hackware . | . . . Protection 1 | . 1 . Artifact . | . . . Weapon 8 | 2 5 1 Energy Gun 2 | . 1 1 Energy Cannon 1 | . 1 . Ballistic Gun 4 | 2 2 . Ballistic Cannon . | . . . Launcher 1 | . 1 . Special Weapon . | . . . Impact Weapon . | . . . Slashing Weapon . | . . . Piercing Weapon . | . . . Special Melee Weapon . | . . . Unidentified Prototypes . | . . . Parts Lost 7 | . 7 . Power 1 | . 1 . Propulsion 2 | . 2 . Utility 1 | . 1 . Weapon 3 | . 3 . Highest Loss Streak 4 | . 4 . To Critical Strikes . | . . . Average Slot Usage (%) 78 | . 78 78 Engine 12 | . 12 14 Leg 13 | . 12 14 Wheel 4 | . 6 . Device 2 | . 2 . Storage 14 | . 14 14 Protection 7 | . 5 14 Energy Gun 3 | . 2 7 Energy Cannon 10 | . 8 14 Ballistic Gun 5 | . 7 . Launcher 3 | . 5 . Naked Turns . | . . . Heaviest Build 17 | 12 17 14 Greatest Support 32 | 32 32 10 Greatest Overweight (x) 4 | . 4 1 Average Overweight (x) . | . . 1 Largest Inventory Capacity 8 | 8 8 8 Average Capacity 7 | 7 8 8 Most Carried 8 | 8 8 6 Average Carried 5 | 4 6 4 Final Capacity 8 | 8 8 8 Final Carried 6 | 6 4 5 Class Distribution -------------------- 100% | Mutant Dominant Class ---------------- Mutant | -10/Materials Mutant | -10/Mines Resources | -11 -10 -10 ----------- Run | Jun Mat Min Matter Collected 374 | 186 130 58 Remotely . | . . . Salvage Created 416 | . 375 41 Parts 35 | . 33 2 Haulers Intercepted . | . . . Recyclers Shooed 1 | . 1 . Parts Field Recycled . | . . . Retrieved Matter . | . . . Parts Self-Destructed . | . . . Prevented . | . . . Kills | -11 -10 -10 ------- Run | Jun Mat Min Combat Hostiles Destroyed 12 | . 11 1 Guns 7 | . 7 . Cannons 3 | . 2 1 AOE 2 | . 2 . Classes Destroyed 5 | . 5 . Mechanic 1 | . 1 . Operator 1 | . 1 . Watcher 2 | . 2 . Swarmer 5 | . 5 . Grunt 7 | . 6 1 Best Kill Streak 8 | . 8 1 Combat Bots Only 7 | . 7 1 Max Kills in Single Turn 2 | . 2 1 Gunslinging . | . . . Exploded 2 | . 2 . Melee . | . . . Uniques/NPCs Destroyed . | . . . Combat | -11 -10 -10 -------- Run | Jun Mat Min Damage Taken 703 | . 615 88 Core 263 | . 217 46 Absorbed by Shields . | . . . Core Remaining (%) 100 | 100 . . Volleys Fired 52 | . 49 3 Largest 2 | . 2 2 Hottest 110 | . 90 110 Shots Fired 91 | . 85 6 Gun 70 | . 67 3 Cannon 14 | . 11 3 Launcher 7 | . 7 . Special . | . . . Kinetic 45 | . 45 . Thermal 17 | . 11 6 Explosive 7 | . 7 . Electromagnetic 22 | . 22 . Robot Hit Streak 7 | . 7 4 Robot Miss Streak 9 | . 7 9 Penetration Max . | . . . Secondary Targets 1 | . 1 . Max Gunslinging Chain 1 | . 1 . Shots Hit Robots 52 | . 48 4 Core Hits 30 | . 27 3 Critical Kills . | . . . Critical Parts Destroyed . | . . . Critical Strikes 1 | . 1 . Corrupt 1 | . 1 . Melee Attacks . | . . . Impact . | . . . Slashing . | . . . Piercing . | . . . Sneak Attacks . | . . . Combat Hostiles . | . . . Follow-up Attacks . | . . . Damage Inflicted 967 | . 909 58 Guns 571 | . 547 24 Cannons 121 | . 87 34 Explosions 275 | . 275 . Melee . | . . . Ramming . | . . . Kinetic 333 | . 333 . Thermal 247 | . 189 58 Explosive 173 | . 173 . Electromagnetic 214 | . 214 . Impact . | . . . Slashing . | . . . Piercing . | . . . Highest Corruption . | . . . Average Corruption . | . . . Corruption Purged . | . . . Corruption Blocked . | . . . Overload Shots . | . . . Overflow Damage 25 | . 25 . Projectiles . | . . . Explosions 25 | . 25 . Melee . | . . . Knockbacks . | . . . Impact . | . . . Kinetic . | . . . Secondary . | . . . Self-Inflicted Damage 30 | . 30 . Shots 1 | . 1 . Rammed . | . . . Targets Rammed . | . . . Kicked . | . . . Crushed . | . . . Highest Temperature 145 | . 90 145 Average Temperature 43 | . 36 85 Received Heat Transfer 222 | . 171 51 Siege Activations . | . . . Robots Corrupted . | . . . Combat Hostiles . | . . . Parts Fried . | . . . Impact Corruptions . | . . . Robots Melted . | . . . Combat Hostiles . | . . . Parts Melted . | . . . Heat Transferred 433 | . 285 148 Parts Sabotaged . | . . . Parts Stolen . | . . . Parts Stripped . | . . . Power Chain Reactions 1 | . 1 . Missiles Intercepted . | . . . Alert | -11 -10 -10 ------- Run | Jun Mat Min Peak Influence 394 | . 394 95 Initial 75 | . . 75 Average 160 | . 222 75 Maximum Alert Level 1 | . 1 . Low Security (%) 60 | 100 38 100 Level 1 39 | . 61 . Level 2 . | . . . Level 3 . | . . . Level 4 . | . . . Level 5 . | . . . High Security . | . . . Max Security . | . . . Squads Dispatched 2 | . 2 . Investigation . | . . . Extermination . | . . . Reinforcement 2 | . 2 . Assault . | . . . Garrison . | . . . Intercept . | . . . Searches Triggered . | . . . Construction Impeded . | . . . Haulers Reinforced . | . . . Active Scanning Responses . | . . . Cargo Convoy Interrupts . | . . . Stealth | -11 -10 -10 --------- Run | Jun Mat Min Distress Signals 1 | . 1 . Communications Jammed . | . . . Distress Signals . | . . . Times Spotted 22 | . 20 2 Peak Tracking Total 5 | . 5 2 Tactical Retreats 1 | . 1 . Traps | -11 -10 -10 ------- Run | Jun Mat Min Traps Triggered 3 | . 3 . Indirectly . | . . . Trap Hack Attempts . | . . . Triggered . | . . . Disarmed . | . . . Reprogrammed . | . . . Reused . | . . . Traps Extracted . | . . . Installed . | . . . Triggered . | . . . Machines | -11 -10 -10 ---------- Run | Jun Mat Min Machines Disabled 5 | . 5 . Max in Single Turn 2 | . 2 . Machines Repaired . | . . . Machines Sabotaged . | . . . Overloaded Fab Kills . | . . . Hacking | -11 -10 -10 --------- Run | Jun Mat Min Machines Accessed 1 | . 1 . Terminals . | . . . Fabricators . | . . . Repair Stations 1 | . 1 . Recycling Units . | . . . Scanalyzers . | . . . Garrison Access . | . . . Total Hacks 3 | . 3 . Successful 1 | . 1 . Failed 2 | . 2 . Catastrophic . | . . . Database Lockouts . | . . . Manual . | . . . Terminals . | . . . Fabricators . | . . . Repair Stations 3 | . 3 . Recycling Units . | . . . Scanalyzers . | . . . Garrison Access . | . . . Terminal Hacks . | . . . Fabricator Hacks . | . . . Repair Station Hacks 1 | . 1 . Scan Component 1 | . 1 . Recycling Unit Hacks . | . . . Scanalyzer . | . . . Garrison Access Hacks . | . . . Unauthorized Hacks . | . . . Terminals . | . . . Fabricators . | . . . Repair Stations . | . . . Recycling Units . | . . . Scanalyzers . | . . . Garrison Access . | . . . Data Cores Recovered . | . . . Used . | . . . Hacking Detections . | . . . Full Trace Events . | . . . Feedback Events . | . . . Feedback Blocked . | . . . Robot Schematics Acquired . | . . . Robots Built . | . . . Authchips . | . . . Time . | . . . Total Robot Build Rating . | . . . Part Schematics Acquired . | . . . Parts Built . | . . . Authchips . | . . . Time . | . . . Total Part Build Rating . | . . . Parts Repaired . | . . . Time . | . . . Parts Recycled . | . . . Recycled Matter . | . . . Retrieved Matter . | . . . Retrieved Components . | . . . Parts Scanalyzed . | . . . Part Schematics Acquired . | . . . Parts Damaged . | . . . Bothacking | -11 -10 -10 ------------ Run | Jun Mat Min Used RIF Installer . | . . . Robots Hacked . | . . . Non-combat . | . . . Combat . | . . . Robot Hacks Applied . | . . . Relay Couplers Released . | . . . Fabnet Peak Effective % . | . . . Robots Rewired . | . . . Allies Hacked . | . . . Hacks Repelled . | . . . Allies | -11 -10 -10 -------- Run | Jun Mat Min Total Allies . | . . . Largest Group . | . . . Highest-Rated Group . | . . . Highest-Rated Ally . | . . . Total Orders . | . . . Ally Attacks . | . . . Total Damage . | . . . Kills . | . . . Allies Corrupted . | . . . Allies Melted . | . . . Intel | -11 -10 -10 ------- Run | Jun Mat Min Robot Analysis Total . | . . . Derelict Logs Recovered . | . . . Drone Launches . | . . . Drone Recoveries . | . . . Exploration | -11 -10 -10 ------------- Run | Jun Mat Min Turns Passed 685 | 84 440 161 Spaces Moved 364 | 72 213 79 Core 27 | 11 16 . Treads . | . . . Legs 230 | . 151 79 Wheels 107 | 61 46 . Hover . | . . . Flight . | . . . Fastest Speed 50 | 50 100 190 Average Speed 137 | 92 133 190 Slowest Speed 250 | 100 250 190 Overloaded Moves . | . . . Propulsion Burnouts . | . . . Robots Hopped . | . . . Cave-ins Triggered . | . . . Exploration Rate (%) 27 | 5 49 27 Regions Visited 2 Branch Regions 1 Pre-discovered Areas . | . . . Known Exits Taken . | . . . Unknown Exits Taken 2 | 1 1 . Scrap Searched 1 | . . 1 Spaces Dug . | . . . Terrain Destroyed 42 | . 42 . Melee . | . . . Projectile . | . . . AOE 42 | . 42 . Terrain Rammed . | . . . Walls Destroyed . | . . . Machines Disabled . | . . . Actions | -11 -10 -10 --------- Run | Jun Mat Min Total 459 | 89 285 85 Wait 1 | . 1 . Move 362 | 71 212 79 Hop . | . . . Pick Up 23 | 12 9 2 Fast Attach 2 | . 2 . Attach 17 | 6 10 1 Detach . | . . . Swap . | . . . Drop 2 | . 2 . Fire 52 | . 49 3 Melee . | . . . Ram . | . . . Kick . | . . . Crush . | . . . Escape Stasis . | . . . Rewire . | . . . Trap . | . . . Miscellaneous . | . . . Route ------- -11/Junkyard -10/Materials -10/Mines History --------- Turn | Location | Event 2 | -11/Junkyard | Met Revision 17 15 | -11/Junkyard | Discovered new exit (range 15) 85 | -11/Junkyard | Entered Materials 214 | -10/Materials | Core integrity fell below 50% 246 | -10/Materials | Core integrity fell below 20% 250 | -10/Materials | Destroyed 7 combat bots 283 | -10/Materials | Lost 4 parts (1n1u2w) 316 | -10/Materials | Build established: Mutant 381 | -10/Materials | Discovered new exit (range 10) 525 | -10/Materials | Entered Mines 686 | -10/Mines | Destroyed by G-47 Trooper with Particle Gun Last Messages --------------- K-01 Serf collects debris. K-01 Serf cleans the Matter Pump. K-01 Serf collects debris. The unstable cave ceiling collapses. K-01 Serf crushed by falling debris. K-01 Serf system corrupted by crushing effect. K-01 Serf destroyed. K-01 Serf collects debris. LOCATION=UNKNOWN GOAL=ESCAPE Something is scanning the area. Searching scrap... Found 29 Matter. Found Med. Laser. Found 29 Matter. Acquired 29 matter. Acquired Med. Laser. Acquired 29 matter. Acquired Med. Laser. G-34 Mercenary destroyed. Map ----- +----------------------------------------------------+ | ?????????????????????????????????????????????? | | ?????????????????????????????????????????????? | | ?????????????????????????????????????????????? | | ?????????????????????????????????????????????? | | ??????????????????????????????##?????????????? | | ?????????????????????????????? ??????????????? | | ?????????????????????????????? #?????????????? | | ????????????????????????????## ??????????????? | | ???????????????????????????? ??????????????? | | ???????????????????????????? #??????????????? | | ???????????????????????????? #??????????????? | | ????????????????????????#### ##?????????????? | | ???????????????????????## ##????????????? | | ???????????????????????# ##???????????? | | ???????????????????????? ????????????? | | ????????????????????????? #?????????????? | | ?????????????????????????# #??????????????? | | ?????????????############# ####### #?????? | | ???????????# #?????? | | ??????????# #######?????????? | | ???????????????######### ##???????????????? | | ???????????????????????# ##????????????????? | | ???????????????????????# g #?????????????????? | | ???????????????????????#=%##?????????????????? | | ????????????????????# #??????????????????? | | ???????????????????# @#??????????????????? | | #??????????########## #??????????????????? | | ???????????# #??????????????????? | | #???????????# ##??????????????????? | | #???????????# ##########???????????????????? | | #???????????# #????????????????????????????? | | #????######## #????????????????????????????? | | #????# #????????????????????????????? | | #?????# #????????????????????????????? | | #??????# #######????????????????????????????? | | #??????# #??????????????????????????????????? | | ##?????# #??????????????????????????????????? | | ####### #??????????????????????????????????? | | #??????????????????????????????????? | | #??????????????????????????????????? | | #### #??????????????????????????????????? | | # #??# #??????????????????????????????????? | | ## ##??# ??????????????????????????????????? | | ?####???### ?????????????????????????????????? | | ????????????#????????????????????????????????? | | ?????????????????????????????????????????????? | | ?????????????????????????????????????????????? | | ?????????????????????????????????????????????? | | ?????????????????????????????????????????????? | | ?????????????????????????????????????????????? | +----------------------------------------------------+ Best States ------------- Heat Dissipation 35 Energy Generation 10 Energy Capacity 250 Matter Stores 226 Matter Capacity 300 Sight Range 16 Terrain Scan Density 10 Utility Shielding 33 Evasion (%) 55 Item Schematics ----------------- None Robot Schematics ------------------ None Fabricated ------------ Nothing Alien Tech Used ----------------- None Achievements -------------- None Challenges ------------ None Game ------ Seed ThermoelectricGatlingMinigun Manual? 0 Play Time 00:08:19 Cumulative 14.5 hours Start 2024.02.27 @ 00:45:28 End 2024.02.27 @ 00:53:01 Sessions 1 Manual Loads 0 Difficulty Rogue Special Mode None Game No. 29 Rogue 16 Adventurer 13 Explorer 0 Win Type - Total 0 Types 0/0/0/0/0/0/0/0/0 Lore% 13 Gallery% 18 Achievement% 14 Wizard Run 0 Options --------- ASCII 0 Keyboard 0 Movement Mouse Keybinds 0 Fullscreen 2 Font 18/SmallcapsGlow Map View 76x50 Tactical HUD 0 Map Filters NONE Filters NONE Steam 1 RUN: 705b5aa1-9ea6-4ad6-a319-680e6d96153b